[Event "Early-Titled-Tuesday-Blitz-March-19-2024"]
[Site "Chess.com"]
[Date "2024.03.19"]
[Round "8"]
[White "Chernov_Alexander_A"]
[Black "HelvertHernandez"]
[Result "1-0"]
[WhiteElo "2293"]
[BlackElo "2025"]
[TimeControl "180+1"]
[EndTime "9:28:52 PDT"]
[Termination "Chernov_Alexander_A won by checkmate"]

1. d4 {[%clk 0:03:00.9]} 1... Nf6 {[%clk 0:02:58.5]} 2. Nc3 {[%clk 0:03:00.3]}
2... g6 {[%clk 0:02:57.9]} 3. e4 {[%clk 0:02:59.2]} 3... d6 {[%clk 0:02:57.6]}
4. Bf4 {[%clk 0:02:59]} 4... Bg7 {[%clk 0:02:57]} 5. Qd2 {[%clk 0:02:59.2]} 5...
c6 {[%clk 0:02:54.1]} 6. O-O-O {[%clk 0:02:58.9]} 6... a6 {[%clk 0:02:50.5]} 7.
Nf3 {[%clk 0:02:54.1]} 7... b5 {[%clk 0:02:50.1]} 8. Bd3 {[%clk 0:02:53.5]} 8...
b4 {[%clk 0:02:49.6]} 9. Ne2 {[%clk 0:02:52.8]} 9... a5 {[%clk 0:02:49]} 10. Kb1
{[%clk 0:02:52.5]} 10... Nbd7 {[%clk 0:02:44.8]} 11. e5 {[%clk 0:02:49.3]} 11...
dxe5 {[%clk 0:02:41.2]} 12. Nxe5 {[%clk 0:02:35.3]} 12... Nd5 {[%clk 0:02:38.7]}
13. Nxc6 {[%clk 0:02:11.7]} 13... Qb6 {[%clk 0:02:37.7]} 14. Ne5 {[%clk
0:02:10.5]} 14... Nxf4 {[%clk 0:02:16.9]} 15. Qxf4 {[%clk 0:02:09]} 15... O-O
{[%clk 0:02:15.8]} 16. h4 {[%clk 0:02:04.6]} 16... Nf6 {[%clk 0:02:06.1]} 17. h5
{[%clk 0:01:53.3]} 17... Nxh5 {[%clk 0:01:59.7]} 18. Rxh5 {[%clk 0:01:42.1]}
18... gxh5 {[%clk 0:01:59.1]} 19. Qe4 {[%clk 0:01:38.8]} 19... Qh6 {[%clk
0:01:54.5]} 20. Qxa8 {[%clk 0:01:36.3]} 20... a4 {[%clk 0:01:33.6]} 21. Qxa4
{[%clk 0:01:34.7]} 21... Be6 {[%clk 0:01:28.3]} 22. Qxb4 {[%clk 0:01:33.4]}
22... Ra8 {[%clk 0:01:26.5]} 23. a4 {[%clk 0:01:29.8]} 23... Bf8 {[%clk
0:01:16.3]} 24. Be4 {[%clk 0:01:23.7]} 24... Rd8 {[%clk 0:01:04.3]} 25. a5
{[%clk 0:01:09.3]} 25... f5 {[%clk 0:01:01]} 26. Bf3 {[%clk 0:01:06.7]} 26...
Kh8 {[%clk 0:00:54.4]} 27. a6 {[%clk 0:01:04.2]} 27... Bg8 {[%clk 0:00:52.3]}
28. Qa5 {[%clk 0:00:58.6]} 28... Ra8 {[%clk 0:00:47.8]} 29. a7 {[%clk
0:00:57.5]} 29... Rxa7 {[%clk 0:00:35.2]} 30. Qxa7 {[%clk 0:00:56.3]} 30... Qe6
{[%clk 0:00:35.2]} 31. Nf4 {[%clk 0:00:48.2]} 31... Qd6 {[%clk 0:00:24.2]} 32.
Qc5 {[%clk 0:00:44.3]} 32... Qa6 {[%clk 0:00:20.8]} 33. Bd5 {[%clk 0:00:40.2]}
33... e6 {[%clk 0:00:20.1]} 34. Qc4 {[%clk 0:00:40.3]} 34... Qb6 {[%clk
0:00:15.9]} 35. Bxe6 {[%clk 0:00:39.1]} 35... Bxe6 {[%clk 0:00:12.9]} 36. Qxe6
{[%clk 0:00:38.1]} 36... Qb8 {[%clk 0:00:11.9]} 37. Nf7+ {[%clk 0:00:36]} 37...
Kg7 {[%clk 0:00:11.3]} 38. Nxh5+ {[%clk 0:00:34.7]} 38... Kg8 {[%clk 0:00:10]}
39. Nh6+ {[%clk 0:00:32.3]} 39... Kh8 {[%clk 0:00:09]} 40. Qg8# {[%clk
0:00:32.1]} 1-0

[Event "Early-Titled-Tuesday-Blitz-March-19-2024"]
[Site "Chess.com"]
[Date "2024.03.19"]
[Round "8"]
[White "GMAkobianSTL"]
[Black "platy3"]
[Result "0-1"]
[WhiteElo "2804"]
[BlackElo "2955"]
[TimeControl "180+1"]
[EndTime "9:28:54 PDT"]
[Termination "platy3 won on time"]

1. d4 {[%clk 0:03:00.9]} 1... Nf6 {[%clk 0:02:59.7]} 2. c4 {[%clk 0:03:00.6]}
2... e6 {[%clk 0:03:00.2]} 3. Nf3 {[%clk 0:03:00.2]} 3... d5 {[%clk 0:03:00.8]}
4. cxd5 {[%clk 0:02:59.8]} 4... exd5 {[%clk 0:03:00.9]} 5. Nc3 {[%clk
0:03:00.2]} 5... c6 {[%clk 0:03:00.3]} 6. Qc2 {[%clk 0:02:49.8]} 6... g6 {[%clk
0:02:59.5]} 7. Bg5 {[%clk 0:02:47]} 7... Be7 {[%clk 0:02:57.4]} 8. e3 {[%clk
0:02:46.9]} 8... h6 {[%clk 0:02:55.6]} 9. Bh4 {[%clk 0:02:46.5]} 9... Bf5 {[%clk
0:02:55.6]} 10. Bd3 {[%clk 0:02:46]} 10... Bxd3 {[%clk 0:02:55.6]} 11. Qxd3
{[%clk 0:02:45.9]} 11... O-O {[%clk 0:02:55.6]} 12. O-O {[%clk 0:02:46]} 12...
Nbd7 {[%clk 0:02:55.5]} 13. Rab1 {[%clk 0:02:45.6]} 13... a5 {[%clk 0:02:55.3]}
14. a3 {[%clk 0:02:45.7]} 14... a4 {[%clk 0:02:54]} 15. Qc2 {[%clk 0:02:45.2]}
15... Qa5 {[%clk 0:02:49.6]} 16. Ne5 {[%clk 0:02:39.8]} 16... Rfe8 {[%clk
0:02:43.8]} 17. Nxg6 {[%clk 0:02:37.7]} 17... fxg6 {[%clk 0:02:43.5]} 18. Qxg6+
{[%clk 0:02:37.2]} 18... Kh8 {[%clk 0:02:43.9]} 19. Qxh6+ {[%clk 0:02:36.7]}
19... Nh7 {[%clk 0:02:43.6]} 20. Bg3 {[%clk 0:02:35.9]} 20... Bf8 {[%clk
0:02:38.1]} 21. Qg6 {[%clk 0:02:33.3]} 21... Qd8 {[%clk 0:02:30.9]} 22. Qc2
{[%clk 0:02:09.3]} 22... Ndf6 {[%clk 0:02:25.8]} 23. Nxa4 {[%clk 0:02:08.9]}
23... Ne4 {[%clk 0:02:16.6]} 24. Be5+ {[%clk 0:01:57.7]} 24... Bg7 {[%clk
0:02:12.9]} 25. f4 {[%clk 0:01:57.6]} 25... Nhf6 {[%clk 0:02:03.9]} 26. Rf3
{[%clk 0:01:50.2]} 26... Kg8 {[%clk 0:01:58.9]} 27. Nc3 {[%clk 0:01:44.7]} 27...
Qd7 {[%clk 0:01:54.6]} 28. Nxe4 {[%clk 0:01:30.5]} 28... Nxe4 {[%clk 0:01:53.5]}
29. Rbf1 {[%clk 0:01:28.3]} 29... Kf7 {[%clk 0:01:37.1]} 30. Rh3 {[%clk
0:01:13.5]} 30... Rh8 {[%clk 0:01:34.9]} 31. Rff3 {[%clk 0:01:13.4]} 31... Rag8
{[%clk 0:01:23.6]} 32. Qb3 {[%clk 0:00:58.8]} 32... Nd2 {[%clk 0:01:20.4]} 33.
Qc2 {[%clk 0:00:55.2]} 33... Nxf3+ {[%clk 0:01:19.4]} 34. Rxf3 {[%clk
0:00:55.4]} 34... Rh6 {[%clk 0:01:02.8]} 35. b4 {[%clk 0:00:45.4]} 35... Bf6
{[%clk 0:01:01.2]} 36. g3 {[%clk 0:00:26.7]} 36... Qg4 {[%clk 0:00:59]} 37. Qf2
{[%clk 0:00:13.8]} 37... Qf5 {[%clk 0:00:53.4]} 38. Qe2 {[%clk 0:00:06.4]} 38...
Qb1+ {[%clk 0:00:48.8]} 39. Rf1 {[%clk 0:00:06.2]} 39... Qe4 {[%clk 0:00:49.2]}
40. Qf3 {[%clk 0:00:04.9]} 40... Qxf3 {[%clk 0:00:47.9]} 41. Rxf3 {[%clk
0:00:04.9]} 41... Ra8 {[%clk 0:00:48.6]} 42. g4 {[%clk 0:00:05.4]} 42... Bxe5
{[%clk 0:00:38.1]} 0-1

[Event "Early-Titled-Tuesday-Blitz-March-19-2024"]
[Site "Chess.com"]
[Date "2024.03.19"]
[Round "8"]
[White "Shuvalov"]
[Black "Agibileg"]
[Result "1-0"]
[WhiteElo "2583"]
[BlackElo "2799"]
[TimeControl "180+1"]
[EndTime "9:28:54 PDT"]
[Termination "Shuvalov won by resignation"]

1. d4 {[%clk 0:03:00.9]} 1... Nf6 {[%clk 0:02:57.3]} 2. c4 {[%clk 0:03:00.2]}
2... g6 {[%clk 0:02:56.4]} 3. Nc3 {[%clk 0:02:59.8]} 3... Bg7 {[%clk 0:02:56.9]}
4. e4 {[%clk 0:03:00.1]} 4... d6 {[%clk 0:02:57.4]} 5. Nf3 {[%clk 0:03:00.5]}
5... O-O {[%clk 0:02:57.6]} 6. Be2 {[%clk 0:03:01.1]} 6... e5 {[%clk 0:02:57.8]}
7. O-O {[%clk 0:03:01.5]} 7... Nc6 {[%clk 0:02:57.5]} 8. d5 {[%clk 0:03:01.6]}
8... Ne7 {[%clk 0:02:57.9]} 9. Ne1 {[%clk 0:03:01.9]} 9... Nd7 {[%clk
0:02:57.4]} 10. f3 {[%clk 0:03:01.7]} 10... f5 {[%clk 0:02:57.8]} 11. g4 {[%clk
0:03:02.3]} 11... f4 {[%clk 0:02:53.3]} 12. h4 {[%clk 0:03:01.7]} 12... Nf6
{[%clk 0:02:51.5]} 13. Rf2 {[%clk 0:02:59.3]} 13... a5 {[%clk 0:02:50.6]} 14.
Rh2 {[%clk 0:02:59]} 14... Bd7 {[%clk 0:02:44.3]} 15. Nd3 {[%clk 0:02:58.4]}
15... a4 {[%clk 0:02:38.8]} 16. Bd2 {[%clk 0:02:54.8]} 16... Qb8 {[%clk
0:02:38.9]} 17. Be1 {[%clk 0:02:52.5]} 17... c5 {[%clk 0:02:31.8]} 18. Nf2
{[%clk 0:02:42.7]} 18... Nc8 {[%clk 0:02:16.1]} 19. Bd3 {[%clk 0:02:37.9]} 19...
Nb6 {[%clk 0:02:16.1]} 20. Rc1 {[%clk 0:02:31.6]} 20... Ra6 {[%clk 0:02:16.1]}
21. Nb1 {[%clk 0:02:29.2]} 21... Na8 {[%clk 0:02:15.5]} 22. Na3 {[%clk
0:02:28.8]} 22... Nc7 {[%clk 0:02:15.2]} 23. Qe2 {[%clk 0:02:16.7]} 23... Rf7
{[%clk 0:01:52.4]} 24. Nd1 {[%clk 0:01:57.5]} 24... Qc8 {[%clk 0:01:40.4]} 25.
Nf2 {[%clk 0:01:51.2]} 25... Bf8 {[%clk 0:01:39.3]} 26. Qf1 {[%clk 0:01:41.5]}
26... Be7 {[%clk 0:01:38.8]} 27. Nd1 {[%clk 0:01:41]} 27... Bxg4 {[%clk
0:01:31.5]} 28. fxg4 {[%clk 0:01:40.7]} 28... Nxg4 {[%clk 0:01:31.6]} 29. Qh3
{[%clk 0:01:35.2]} 29... Ne8 {[%clk 0:01:28.7]} 30. Rg2 {[%clk 0:01:29.9]} 30...
h5 {[%clk 0:01:24.8]} 31. Be2 {[%clk 0:01:27.9]} 31... Nef6 {[%clk 0:01:14.4]}
32. Nf2 {[%clk 0:01:26.1]} 32... Ra8 {[%clk 0:01:02.7]} 33. Nxg4 {[%clk
0:01:18.5]} 33... hxg4 {[%clk 0:00:59.6]} 34. Bxg4 {[%clk 0:01:18.6]} 34... Nxg4
{[%clk 0:00:58.6]} 35. Qxg4 {[%clk 0:01:19.5]} 35... Qxg4 {[%clk 0:00:50.8]} 36.
Rxg4 {[%clk 0:01:20.4]} 36... Kh7 {[%clk 0:00:51.4]} 37. Kf2 {[%clk 0:01:13.2]}
37... f3 {[%clk 0:00:49.2]} 38. Rc3 {[%clk 0:01:10.9]} 38... Raf8 {[%clk
0:00:49]} 39. Bd2 {[%clk 0:01:08.8]} 39... Bd8 {[%clk 0:00:45.2]} 40. Nb5 {[%clk
0:01:07.8]} 40... Ba5 {[%clk 0:00:33.8]} 41. Rd3 {[%clk 0:01:07.7]} 41... Bxd2
{[%clk 0:00:33.4]} 42. Rxd2 {[%clk 0:01:08.6]} 42... Rf6 {[%clk 0:00:29.3]} 43.
Rd3 {[%clk 0:01:07.5]} 43... Kh6 {[%clk 0:00:29.6]} 44. Rg3 {[%clk 0:01:06]}
44... Kh5 {[%clk 0:00:29.4]} 45. Rdxf3 {[%clk 0:01:06]} 45... Kxh4 {[%clk
0:00:29.4]} 46. Nxd6 {[%clk 0:00:54.8]} 46... Rf4 {[%clk 0:00:22.4]} 47. Rxf4+
{[%clk 0:00:49.7]} 47... exf4 {[%clk 0:00:21.8]} 48. Rxg6 {[%clk 0:00:47.8]} 1-0

[Event "Early-Titled-Tuesday-Blitz-March-19-2024"]
[Site "Chess.com"]
[Date "2024.03.19"]
[Round "8"]
[White "JoliyRoger"]
[Black "ritanovikova"]
[Result "1-0"]
[WhiteElo "2425"]
[BlackElo "2228"]
[TimeControl "180+1"]
[EndTime "9:28:54 PDT"]
[Termination "JoliyRoger won on time"]

1. d4 {[%clk 0:03:00.9]} 1... g6 {[%clk 0:02:57.8]} 2. c4 {[%clk 0:02:56.8]}
2... Bg7 {[%clk 0:02:58]} 3. e4 {[%clk 0:02:56.3]} 3... d6 {[%clk 0:02:57.1]} 4.
h3 {[%clk 0:02:55.8]} 4... Nf6 {[%clk 0:02:56.5]} 5. Nc3 {[%clk 0:02:55.3]} 5...
O-O {[%clk 0:02:56.4]} 6. Nf3 {[%clk 0:02:55.9]} 6... Nbd7 {[%clk 0:02:56]} 7.
Bg5 {[%clk 0:02:55]} 7... Re8 {[%clk 0:02:54.9]} 8. Be2 {[%clk 0:02:52.7]} 8...
e5 {[%clk 0:02:51]} 9. d5 {[%clk 0:02:53.2]} 9... h6 {[%clk 0:02:49.8]} 10. Be3
{[%clk 0:02:52.7]} 10... g5 {[%clk 0:02:48.9]} 11. g3 {[%clk 0:02:52.1]} 11...
Nh7 {[%clk 0:02:47.4]} 12. h4 {[%clk 0:02:41.4]} 12... g4 {[%clk 0:02:45.5]} 13.
Nh2 {[%clk 0:02:42]} 13... h5 {[%clk 0:02:45.8]} 14. f3 {[%clk 0:02:42.6]} 14...
f5 {[%clk 0:02:31.8]} 15. exf5 {[%clk 0:02:40.3]} 15... Ndf6 {[%clk 0:02:14.7]}
16. fxg4 {[%clk 0:02:38.4]} 16... hxg4 {[%clk 0:02:13.9]} 17. Rf1 {[%clk
0:02:23.8]} 17... Nh5 {[%clk 0:02:08.3]} 18. Rg1 {[%clk 0:02:03.8]} 18... Bxf5
{[%clk 0:02:07]} 19. Bxg4 {[%clk 0:02:04.4]} 19... Bxg4 {[%clk 0:01:53.3]} 20.
Nxg4 {[%clk 0:02:04]} 20... e4 {[%clk 0:01:45.7]} 21. Qe2 {[%clk 0:01:51.9]}
21... Qe7 {[%clk 0:01:24.5]} 22. O-O-O {[%clk 0:01:49.7]} 22... Rf8 {[%clk
0:01:24.5]} 23. Nh6+ {[%clk 0:01:44.9]} 23... Bxh6 {[%clk 0:01:20.7]} 24. Bxh6
{[%clk 0:01:45.3]} 24... Rf3 {[%clk 0:01:19.9]} 25. Nxe4 {[%clk 0:01:30.9]}
25... Raf8 {[%clk 0:01:18.9]} 26. Rde1 {[%clk 0:01:27.6]} 26... R8f7 {[%clk
0:00:57.3]} 27. Bd2 {[%clk 0:01:11.3]} 27... Qd7 {[%clk 0:00:48]} 28. g4 {[%clk
0:01:02.7]} 28... Ng7 {[%clk 0:00:44.6]} 29. Bc3 {[%clk 0:00:59.7]} 29... Qa4
{[%clk 0:00:40]} 30. b3 {[%clk 0:00:57.2]} 30... Qa3+ {[%clk 0:00:34]} 31. Qb2
{[%clk 0:00:57.7]} 31... Qxb2+ {[%clk 0:00:33.8]} 32. Kxb2 {[%clk 0:00:58.3]}
32... Rh3 {[%clk 0:00:32.9]} 33. g5 {[%clk 0:00:42.9]} 33... Rh2+ {[%clk
0:00:29.8]} 34. Ka3 {[%clk 0:00:41.3]} 34... Re7 {[%clk 0:00:25.9]} 35. Nf6+
{[%clk 0:00:38.8]} 35... Kf8 {[%clk 0:00:23.2]} 36. Nxh7+ {[%clk 0:00:38.3]} 1-0

[Event "Early-Titled-Tuesday-Blitz-March-19-2024"]
[Site "Chess.com"]
[Date "2024.03.19"]
[Round "8"]
[White "Gabix_94"]
[Black "sorch29"]
[Result "1-0"]
[WhiteElo "2741"]
[BlackElo "2488"]
[TimeControl "180+1"]
[EndTime "9:28:55 PDT"]
[Termination "Gabix_94 won on time"]

1. e4 {[%clk 0:02:55.7]} 1... c5 {[%clk 0:02:59.6]} 2. Nf3 {[%clk 0:02:54.7]}
2... Nc6 {[%clk 0:03:00.1]} 3. Nc3 {[%clk 0:02:54.7]} 3... g6 {[%clk 0:02:52.6]}
4. h4 {[%clk 0:02:53.9]} 4... h5 {[%clk 0:02:41.5]} 5. d4 {[%clk 0:02:52.1]}
5... cxd4 {[%clk 0:02:40.7]} 6. Nxd4 {[%clk 0:02:53]} 6... Bg7 {[%clk
0:02:41.4]} 7. Be3 {[%clk 0:02:52.7]} 7... Nf6 {[%clk 0:02:41.7]} 8. Be2 {[%clk
0:02:50.8]} 8... O-O {[%clk 0:02:38.3]} 9. Qd2 {[%clk 0:02:47.9]} 9... d6 {[%clk
0:02:33.8]} 10. O-O-O {[%clk 0:02:46]} 10... Qa5 {[%clk 0:02:27.7]} 11. Kb1
{[%clk 0:02:42.8]} 11... Nxd4 {[%clk 0:02:25.1]} 12. Bxd4 {[%clk 0:02:39]} 12...
Be6 {[%clk 0:02:25.3]} 13. Nd5 {[%clk 0:02:33.8]} 13... Qxd2 {[%clk 0:02:12.4]}
14. Nxf6+ {[%clk 0:02:26.8]} 14... Bxf6 {[%clk 0:02:09.7]} 15. Rxd2 {[%clk
0:02:27.7]} 15... Bxd4 {[%clk 0:02:02.3]} 16. Rxd4 {[%clk 0:02:28.6]} 16... Rac8
{[%clk 0:02:00.3]} 17. Rhd1 {[%clk 0:02:26.5]} 17... Rc7 {[%clk 0:01:52.7]} 18.
g3 {[%clk 0:02:23.1]} 18... Rfc8 {[%clk 0:01:50.9]} 19. R1d2 {[%clk 0:02:21.5]}
19... Kg7 {[%clk 0:01:48]} 20. b3 {[%clk 0:02:17.3]} 20... b6 {[%clk 0:01:44.5]}
21. Ba6 {[%clk 0:02:15]} 21... Rb8 {[%clk 0:01:41.5]} 22. Kb2 {[%clk 0:02:13.2]}
22... Bc8 {[%clk 0:01:41.3]} 23. Bf1 {[%clk 0:02:10.1]} 23... Be6 {[%clk
0:01:36.6]} 24. a4 {[%clk 0:02:06.4]} 24... a5 {[%clk 0:01:33.5]} 25. Bb5 {[%clk
0:02:02.9]} 25... Rbc8 {[%clk 0:01:24.4]} 26. c4 {[%clk 0:02:00]} 26... Rc5
{[%clk 0:01:02.5]} 27. f4 {[%clk 0:01:57.2]} 27... f5 {[%clk 0:00:52.7]} 28. Re2
{[%clk 0:01:54.1]} 28... Kf6 {[%clk 0:00:46.4]} 29. Kc3 {[%clk 0:01:51.8]} 29...
R8c7 {[%clk 0:00:39.6]} 30. b4 {[%clk 0:01:47.4]} 30... axb4+ {[%clk 0:00:39.4]}
31. Kxb4 {[%clk 0:01:48.3]} 31... fxe4 {[%clk 0:00:29.7]} 32. Rdxe4 {[%clk
0:01:47.3]} 32... Bf5 {[%clk 0:00:30.4]} 33. R4e3 {[%clk 0:01:45.8]} 33... e5
{[%clk 0:00:30.3]} 34. Rd2 {[%clk 0:01:43.5]} 34... Ke6 {[%clk 0:00:23.1]} 35.
Re1 {[%clk 0:01:37.9]} 35... Rc8 {[%clk 0:00:08.6]} 36. Red1 {[%clk 0:01:29.9]}
36... Rd8 {[%clk 0:00:08.8]} 37. fxe5 {[%clk 0:01:16.2]} 37... Rxe5 {[%clk
0:00:08.2]} 38. Bc6 {[%clk 0:01:16.5]} 38... Re3 {[%clk 0:00:07.9]} 39. Bd5+
{[%clk 0:01:15.5]} 39... Ke7 {[%clk 0:00:08]} 40. Kb5 {[%clk 0:01:14.7]} 40...
Rxg3 {[%clk 0:00:08]} 41. Kxb6 {[%clk 0:01:14.9]} 41... Rb3+ {[%clk 0:00:03.8]}
42. Ka5 {[%clk 0:01:15.3]} 42... Rh3 {[%clk 0:00:02.5]} 43. Re1+ {[%clk
0:01:13.7]} 43... Kf6 {[%clk 0:00:02.7]} 44. Rb2 {[%clk 0:01:09.5]} 44... Rxh4
{[%clk 0:00:02.8]} 45. Rb6 {[%clk 0:01:09.8]} 45... Kg7 {[%clk 0:00:01.5]} 46.
Re7+ {[%clk 0:01:09]} 46... Kh6 {[%clk 0:00:02.1]} 47. Kb4 {[%clk 0:01:06.7]}
47... Rh2 {[%clk 0:00:02.6]} 48. a5 {[%clk 0:01:06.7]} 48... Rb2+ {[%clk
0:00:02.7]} 49. Kc3 {[%clk 0:01:07.2]} 49... Ra2 {[%clk 0:00:02]} 50. a6 {[%clk
0:01:07.3]} 50... Ra1 {[%clk 0:00:02.1]} 51. a7 {[%clk 0:01:07.2]} 1-0

[Event "Early-Titled-Tuesday-Blitz-March-19-2024"]
[Site "Chess.com"]
[Date "2024.03.19"]
[Round "8"]
[White "Willhaven3"]
[Black "TV27"]
[Result "0-1"]
[WhiteElo "2520"]
[BlackElo "2284"]
[TimeControl "180+1"]
[EndTime "9:28:56 PDT"]
[Termination "TV27 won by resignation"]

1. e4 {[%clk 0:03:00.9]} 1... c5 {[%clk 0:02:53.9]} 2. Nc3 {[%clk 0:03:00.4]}
2... Nc6 {[%clk 0:02:49]} 3. f4 {[%clk 0:03:00.6]} 3... g6 {[%clk 0:02:41.2]} 4.
Nf3 {[%clk 0:03:00.7]} 4... Bg7 {[%clk 0:02:41.1]} 5. Bc4 {[%clk 0:03:01.2]}
5... e6 {[%clk 0:02:39.3]} 6. f5 {[%clk 0:03:01.3]} 6... Nge7 {[%clk 0:02:34]}
7. fxe6 {[%clk 0:03:01.4]} 7... dxe6 {[%clk 0:02:33.5]} 8. d3 {[%clk 0:03:01.6]}
8... Na5 {[%clk 0:02:27.9]} 9. Bb5+ {[%clk 0:02:55]} 9... Bd7 {[%clk 0:02:27.3]}
10. Bxd7+ {[%clk 0:02:55.3]} 10... Qxd7 {[%clk 0:02:27.1]} 11. Be3 {[%clk
0:02:55.8]} 11... b6 {[%clk 0:02:26.1]} 12. O-O {[%clk 0:02:55.8]} 12... O-O
{[%clk 0:02:20.5]} 13. Qe1 {[%clk 0:02:55.7]} 13... Nac6 {[%clk 0:02:13.1]} 14.
Qh4 {[%clk 0:02:55.8]} 14... Nd4 {[%clk 0:02:08.8]} 15. Rf2 {[%clk 0:02:56]}
15... Nxf3+ {[%clk 0:02:06]} 16. Rxf3 {[%clk 0:02:55.8]} 16... f5 {[%clk
0:02:04.4]} 17. Bh6 {[%clk 0:02:50.7]} 17... Rf7 {[%clk 0:01:58.1]} 18. Re1
{[%clk 0:02:45.1]} 18... Qd4+ {[%clk 0:01:48.1]} 19. Kh1 {[%clk 0:02:43.1]}
19... Raf8 {[%clk 0:01:38.9]} 20. Be3 {[%clk 0:02:24.4]} 20... Qd8 {[%clk
0:01:37.6]} 21. Rh3 {[%clk 0:02:23.2]} 21... Bxc3 {[%clk 0:01:19.2]} 22. bxc3
{[%clk 0:02:20.1]} 22... fxe4 {[%clk 0:01:18.7]} 23. Qxe4 {[%clk 0:02:07.8]}
23... Qd5 {[%clk 0:01:17.1]} 24. Bg1 {[%clk 0:02:03.8]} 24... Qxe4 {[%clk
0:01:09.1]} 25. Rxe4 {[%clk 0:02:04.7]} 25... Nd5 {[%clk 0:01:08.9]} 26. d4
{[%clk 0:01:41.8]} 26... Nxc3 {[%clk 0:01:06.1]} 27. Rxe6 {[%clk 0:01:41.1]}
27... cxd4 {[%clk 0:01:00.9]} 28. Bxd4 {[%clk 0:01:19.1]} 28... Rf1+ {[%clk
0:00:59.2]} 29. Bg1 {[%clk 0:01:19.4]} 29... Nd1 {[%clk 0:00:58.9]} 30. Rf3
{[%clk 0:01:05.8]} 30... Nf2+ {[%clk 0:00:55.5]} 31. Rxf2 {[%clk 0:01:05.8]}
31... R8xf2 {[%clk 0:00:55.2]} 32. h3 {[%clk 0:00:54]} 32... Rxc2 {[%clk
0:00:53.6]} 33. Kh2 {[%clk 0:00:54.4]} 33... Rf7 {[%clk 0:00:48.5]} 34. Be3
{[%clk 0:00:47.5]} 34... Rxa2 {[%clk 0:00:45.2]} 35. Bh6 {[%clk 0:00:47.4]}
35... Raf2 {[%clk 0:00:32]} 36. Re8+ {[%clk 0:00:43.3]} 36... Rf8 {[%clk
0:00:31.6]} 37. Bxf8 {[%clk 0:00:40.9]} 37... Rxf8 {[%clk 0:00:31.1]} 38. Re7
{[%clk 0:00:41.8]} 38... Rf7 {[%clk 0:00:31]} 39. Re8+ {[%clk 0:00:41.9]} 39...
Kg7 {[%clk 0:00:30.8]} 40. Ra8 {[%clk 0:00:41.1]} 40... Rb7 {[%clk 0:00:29.7]}
41. Kg3 {[%clk 0:00:38]} 41... b5 {[%clk 0:00:29.6]} 42. Rc8 {[%clk 0:00:38.3]}
42... b4 {[%clk 0:00:29.6]} 43. Rc2 {[%clk 0:00:38]} 43... b3 {[%clk 0:00:29.4]}
44. Rb2 {[%clk 0:00:38.9]} 44... a5 {[%clk 0:00:29.2]} 45. Kf3 {[%clk
0:00:39.2]} 45... a4 {[%clk 0:00:29.5]} 46. Ke3 {[%clk 0:00:39.6]} 46... a3
{[%clk 0:00:29.8]} 47. Rb1 {[%clk 0:00:40]} 47... b2 {[%clk 0:00:30]} 0-1

[Event "Early-Titled-Tuesday-Blitz-March-19-2024"]
[Site "Chess.com"]
[Date "2024.03.19"]
[Round "8"]
[White "JaackCamel"]
[Black "InitiatingASC"]
[Result "0-1"]
[WhiteElo "2210"]
[BlackElo "2356"]
[TimeControl "180+1"]
[EndTime "9:28:58 PDT"]
[Termination "InitiatingASC won on time"]

1. d4 {[%clk 0:03:00.9]} 1... Nf6 {[%clk 0:02:48.9]} 2. c4 {[%clk 0:02:59.3]}
2... e6 {[%clk 0:02:49.1]} 3. Nc3 {[%clk 0:02:58.5]} 3... c5 {[%clk 0:02:48.6]}
4. d5 {[%clk 0:02:56.6]} 4... exd5 {[%clk 0:02:48.9]} 5. cxd5 {[%clk 0:02:56.2]}
5... d6 {[%clk 0:02:49.1]} 6. e4 {[%clk 0:02:55.8]} 6... g6 {[%clk 0:02:49]} 7.
f4 {[%clk 0:02:34.8]} 7... Bg7 {[%clk 0:02:46.4]} 8. Bb5+ {[%clk 0:02:28.4]}
8... Bd7 {[%clk 0:02:45.7]} 9. e5 {[%clk 0:02:10]} 9... Nh5 {[%clk 0:02:28.1]}
10. Nf3 {[%clk 0:01:56.6]} 10... O-O {[%clk 0:02:11.2]} 11. O-O {[%clk
0:01:47.1]} 11... a6 {[%clk 0:01:49.3]} 12. Bxd7 {[%clk 0:01:46]} 12... Qxd7
{[%clk 0:01:49.4]} 13. Re1 {[%clk 0:01:08.1]} 13... Bh6 {[%clk 0:01:48]} 14. e6
{[%clk 0:00:56.7]} 14... Qc7 {[%clk 0:01:43.7]} 15. g3 {[%clk 0:00:40.5]} 15...
b5 {[%clk 0:01:34.2]} 16. Be3 {[%clk 0:00:36.3]} 16... Nf6 {[%clk 0:01:23.1]}
17. Ng5 {[%clk 0:00:33]} 17... b4 {[%clk 0:00:57.1]} 18. Nce4 {[%clk 0:00:32.6]}
18... Nxe4 {[%clk 0:00:53.4]} 19. Nxe4 {[%clk 0:00:31.8]} 19... f5 {[%clk
0:00:43.3]} 20. Ng5 {[%clk 0:00:27.3]} 20... Bg7 {[%clk 0:00:38.8]} 21. Rc1
{[%clk 0:00:21.5]} 21... Bxb2 {[%clk 0:00:35.1]} 22. Rc2 {[%clk 0:00:20.3]}
22... Bf6 {[%clk 0:00:35]} 23. Qd3 {[%clk 0:00:15.2]} 23... Ra7 {[%clk
0:00:25.9]} 24. Bxc5 {[%clk 0:00:15.3]} 24... dxc5 {[%clk 0:00:24]} 25. d6
{[%clk 0:00:15.5]} 25... Qc6 {[%clk 0:00:23.2]} 26. e7 {[%clk 0:00:12.4]} 26...
Re8 {[%clk 0:00:20.7]} 27. Qc4+ {[%clk 0:00:10.6]} 27... Kh8 {[%clk 0:00:17.5]}
28. Qf7 {[%clk 0:00:08.8]} 28... Bg7 {[%clk 0:00:18]} 29. Ne6 {[%clk 0:00:08]}
29... Bh6 {[%clk 0:00:08.5]} 30. Qf6+ {[%clk 0:00:04]} 30... Kg8 {[%clk
0:00:08]} 31. Nc7 {[%clk 0:00:01.1]} 31... Nd7 {[%clk 0:00:06.8]} 0-1